[Event "NJSK 2022 Meisjes C"]
[Site "Almelo, Netherlands"]
[Date "2022.05.07"]
[Round "7.6"]
[White "Kulikova, Polina"]
[Black "Roebers, Bregje"]
[Result "1-0"]
[TimeControl "90min/40moves + 30min + 30sec/move"]
[WhiteElo "1117"]
[BlackElo "1214"]

1. d4 {[%clk 01:30:59]} d5 {[%clk 01:30:55]} {[%emt 00:00:06]} 2. c4 {[%clk
01:31:24]} {[%emt 00:00:05]} e6 {[%clk 01:31:14]} {[%emt 00:00:10]} 3. Nf3
{[%clk 01:31:51]} {[%emt 00:00:03]} Nf6 {[%clk 01:31:11]} {[%emt 00:00:33]} 4.
Bg5 {[%clk 01:32:07]} {[%emt 00:00:14]} Be7 {[%clk 01:31:24]} {[%emt 00:00:18]}
5. Nc3 {[%clk 01:32:25]} {[%emt 00:00:11]} c6 {[%clk 01:31:22]} {[%emt
00:00:33]} 6. e3 {[%clk 01:32:51]} {[%emt 00:00:03]} O-O {[%clk 01:30:55]}
{[%emt 00:00:59]} 7. Qc2 {[%clk 01:33:11]} {[%emt 00:00:09]} h6 {[%clk
01:29:51]} {[%emt 00:01:33]} 8. Bxf6 {[%clk 01:29:31]} {[%emt 00:04:11]} Bxf6
{[%clk 01:30:12]} {[%emt 00:00:08]} 9. Bd3 {[%clk 01:28:36]} {[%emt 00:01:25]}
Na6 {[%clk 01:27:02]} {[%emt 00:03:41]} 10. a3 {[%clk 01:28:49]} {[%emt
00:00:16]} Nc7 {[%clk 01:27:00]} {[%emt 00:00:33]} 11. h3 {[%clk 01:28:16]}
{[%emt 00:01:03]} Qe7 {[%clk 01:21:57]} {[%emt 00:05:33]} 12. g4 {[%clk
01:27:09]} {[%emt 00:01:36]} g5 {[%clk 01:13:51]} {[%emt 00:08:37]} 13. O-O-O
{[%clk 01:24:33]} {[%emt 00:03:05]} Kg7 {[%clk 01:10:28]} {[%emt 00:03:53]} 14.
Rh2 {[%clk 01:23:56]} {[%emt 00:01:07]} Rh8 {[%clk 01:06:33]} {[%emt 00:04:25]}
15. Rdh1 {[%clk 01:23:46]} {[%emt 00:00:41]} e5 {[%clk 01:04:32]} {[%emt
00:02:31]} 16. dxe5 {[%clk 01:21:03]} {[%emt 00:03:12]} Bxe5 {[%clk 01:04:47]}
{[%emt 00:00:15]} 17. Nxe5 {[%clk 01:21:13]} {[%emt 00:00:20]} Qxe5 {[%clk
01:05:02]} {[%emt 00:00:15]} 18. cxd5 {[%clk 01:20:42]} {[%emt 00:01:02]} Nxd5
{[%clk 01:00:43]} {[%emt 00:04:48]} 19. Nxd5 {[%clk 01:20:11]} {[%emt
00:01:01]} cxd5 {[%clk 01:00:21]} {[%emt 00:00:53]} 20. Qc3 {[%clk 01:10:15]}
{[%emt 00:10:25]} Qxc3+ {[%clk 01:00:16]} {[%emt 00:00:35]} 21. bxc3 {[%clk
01:10:37]} {[%emt 00:00:08]} Be6 {[%clk 00:59:23]} {[%emt 00:01:23]} 22. Be2
{[%clk 01:10:34]} {[%emt 00:00:33]} Rac8 {[%clk 00:58:14]} {[%emt 00:01:39]} 23.
Kb2 {[%clk 01:10:39]} {[%emt 00:00:26]} f6 {[%clk 00:53:58]} {[%emt 00:04:45]}
24. h4 {[%clk 01:03:35]} {[%emt 00:07:34]} f5 {[%clk 00:48:53]} {[%emt
00:05:36]} 25. gxf5 {[%clk 01:03:16]} {[%emt 00:00:49]} Bxf5 {[%clk 00:49:11]}
{[%emt 00:00:11]} 26. Bf3 {[%clk 01:00:17]} {[%emt 00:03:28]} Be4 {[%clk
00:45:33]} {[%emt 00:04:09]} 27. Bxe4 {[%clk 01:00:24]} {[%emt 00:00:23]} dxe4
{[%clk 00:45:35]} {[%emt 00:00:28]} 28. hxg5 {[%clk 01:00:41]} {[%emt
00:00:13]} hxg5 {[%clk 00:45:46]} {[%emt 00:00:19]} 29. Rxh8 {[%emt 00:00:11]}
Rxh8 {[%emt 00:00:09]} 30. Rxh8 {[%emt 00:00:11]} Kxh8 {[%emt 00:00:07]} 31. c4
{[%clk 00:58:44]} {[%emt 00:01:49]} Kg7 {[%clk 00:45:46]} {[%emt 00:00:30]} 32.
Kc3 {[%clk 00:59:00]} {[%emt 00:00:14]} Kf6 {[%clk 00:45:32]} {[%emt 00:00:44]}
33. Kd4 {[%clk 00:59:07]} {[%emt 00:00:23]} Kf5 {[%clk 00:44:48]} {[%emt
00:01:14]} 34. c5 {[%clk 00:59:18]} {[%emt 00:00:19]} a6 {[%clk 00:33:17]}
{[%emt 00:12:02]} 35. a4 {[%clk 00:57:56]} {[%emt 00:01:52]} g4 {[%clk
00:28:41]} {[%emt 00:05:05]} 36. a5 {[%clk 00:58:05]} {[%emt 00:00:21]} 1-0

[Event "NJSK 2022 Meisjes C"]
[Site "Almelo, Netherlands"]
[Date "2022.05.07"]
[Round "7.7"]
[White "Tunyluhulima, Serana"]
[Black "Jonkman, Sophia"]
[Result "0-1"]
[TimeControl "90min/40moves + 30min + 30sec/move"]
[WhiteElo "1617"]
[BlackElo "1417"]

1. e4 {[%clk 01:30:57]} e6 {[%clk 01:30:55]} {[%emt 00:00:06]} 2. d4 {[%clk
01:31:18]} {[%emt 00:00:09]} d5 {[%clk 01:31:21]} {[%emt 00:00:04]} 3. e5
{[%clk 01:31:38]} {[%emt 00:00:10]} c5 {[%clk 01:31:45]} {[%emt 00:00:07]} 4.
c3 {[%clk 01:31:54]} {[%emt 00:00:13]} Nc6 {[%clk 01:31:50]} {[%emt 00:00:25]}
5. Nf3 {[%clk 01:31:49]} {[%emt 00:00:35]} Qa5 {[%clk 01:20:26]} {[%emt
00:11:54]} 6. Bd2 {[%clk 01:28:06]} {[%emt 00:04:13]} Qb6 {[%clk 01:17:08]}
{[%emt 00:03:49]} 7. Bc1 {[%clk 01:22:28]} {[%emt 00:06:07]} Nge7 {[%clk
01:12:11]} {[%emt 00:05:28]} 8. Na3 {[%clk 01:14:57]} {[%emt 00:08:00]} a6
{[%clk 01:05:19]} {[%emt 00:07:22]} 9. Qa4 {[%clk 01:07:57]} {[%emt 00:07:30]}
Bd7 {[%clk 00:48:39]} {[%emt 00:17:10]} 10. Nb5 {[%clk 01:01:47]} {[%emt
00:06:40]} Nc8 {[%clk 00:40:33]} {[%emt 00:08:37]} 11. c4 {[%clk 00:40:45]}
{[%emt 00:21:32]} Rb8 {[%clk 00:31:46]} {[%emt 00:09:17]} 12. Nc3 {[%clk
00:39:13]} {[%emt 00:02:02]} dxc4 {[%clk 00:25:52]} {[%emt 00:06:23]} 13. Qxc4
{[%clk 00:38:36]} {[%emt 00:01:07]} cxd4 {[%clk 00:24:44]} {[%emt 00:01:39]} 14.
Na4 {[%clk 00:33:54]} {[%emt 00:05:11]} Qb4+ {[%clk 00:23:36]} {[%emt
00:01:38]} 15. Qxb4 {[%clk 00:33:59]} {[%emt 00:00:25]} Bxb4+ {[%clk 00:23:46]}
{[%emt 00:00:20]} 16. Bd2 {[%clk 00:32:22]} {[%emt 00:02:06]} Bxd2+ {[%clk
00:22:31]} {[%emt 00:01:46]} 17. Nxd2 {[%clk 00:32:34]} {[%emt 00:00:18]} Nxe5
{[%clk 00:21:15]} {[%emt 00:01:47]} 18. Nc5 {[%clk 00:32:05]} {[%emt 00:00:59]}
Bb5 {[%clk 00:19:21]} {[%emt 00:02:24]} 19. Bxb5+ {[%clk 00:31:58]} {[%emt
00:00:37]} axb5 {[%clk 00:19:12]} {[%emt 00:00:39]} 20. O-O {[%clk 00:32:00]}
{[%emt 00:00:28]} Nb6 {[%clk 00:15:41]} {[%emt 00:04:02]} 21. Ndb3 {[%clk
00:31:28]} {[%emt 00:01:01]} Nc6 {[%clk 00:14:13]} {[%emt 00:01:59]} 22. Rad1
{[%clk 00:31:15]} {[%emt 00:00:40]} e5 {[%clk 00:13:16]} {[%emt 00:01:30]} 23.
Rfe1 {[%clk 00:30:28]} {[%emt 00:01:17]} O-O {[%clk 00:12:29]} {[%emt
00:01:16]} 24. Nd2 {[%clk 00:28:01]} {[%emt 00:02:57]} Rfe8 {[%clk 00:10:26]}
{[%emt 00:02:34]} 25. Nf3 {[%clk 00:27:07]} {[%emt 00:01:23]} f6 {[%clk
00:07:58]} {[%emt 00:02:59]} 26. Re4 {[%clk 00:24:38]} {[%emt 00:02:58]} Na4
{[%clk 00:06:15]} {[%emt 00:02:14]} 27. Nxa4 {[%clk 00:23:32]} {[%emt
00:01:34]} bxa4 {[%clk 00:06:28]} {[%emt 00:00:18]} 28. Nh4 {[%clk 00:22:01]}
{[%emt 00:02:00]} g6 {[%clk 00:05:07]} {[%emt 00:01:52]} 29. Rg4 {[%clk
00:20:57]} {[%emt 00:01:33]} Kf7 {[%clk 00:03:23]} {[%emt 00:02:15]} 30. Re1
{[%clk 00:18:47]} {[%emt 00:02:40]} Ne7 {[%clk 00:02:43]} {[%emt 00:01:10]} 31.
Nf3 {[%clk 00:17:08]} {[%emt 00:02:09]} Rbc8 {[%clk 00:01:48]} {[%emt
00:01:25]} 32. Nd2 {[%clk 00:15:57]} {[%emt 00:01:40]} Rc2 {[%clk 00:01:06]}
{[%emt 00:01:13]} 33. Ne4 {[%clk 00:15:54]} {[%emt 00:00:32]} Nf5 {[%clk
00:01:19]} {[%emt 00:00:18]} 34. Ng3 {[%clk 00:13:11]} {[%emt 00:03:13]} Nxg3
{[%clk 00:01:23]} {[%emt 00:00:26]} 35. Rxg3 {[%clk 00:13:27]} {[%emt
00:00:14]} Rxb2 {[%clk 00:01:38]} {[%emt 00:00:15]} 36. Ra3 {[%clk 00:13:22]}
{[%emt 00:00:35]} b5 {[%clk 00:01:47]} {[%emt 00:00:20]} 37. h3 {[%clk
00:13:22]} {[%emt 00:00:31]} Rc8 {[%clk 00:01:58]} {[%emt 00:00:20]} 38. Rd1
{[%clk 00:11:15]} {[%emt 00:02:36]} Rcc2 {[%clk 00:02:02]} {[%emt 00:00:26]} 39.
Rf3 {[%clk 00:09:00]} {[%emt 00:02:44]} Rxa2 {[%clk 00:02:20]} {[%emt
00:00:13]} 40. Re1 {[%emt 00:01:01]} Re2 {[%clk 00:02:02]} 41. Rc1 {[%clk
00:08:42]} {[%emt 00:01:04]} Rec2 {[%clk 00:01:57]} {[%emt 00:00:36]} 42. Re1
{[%clk 00:08:25]} {[%emt 00:00:47]} b4 {[%clk 00:29:34]} {[%emt 00:02:53]} 43.
Rxe5 {[%clk 00:38:27]} {[%emt 00:00:28]} b3 {[%clk 00:26:30]} {[%emt 00:03:34]}
44. Rb5 {[%clk 00:38:12]} {[%emt 00:00:44]} Rc7 {[%clk 00:25:26]} {[%emt
00:01:35]} 45. Rf4 {[%clk 00:36:04]} {[%emt 00:02:37]} b2 {[%clk 00:24:25]}
{[%emt 00:01:32]} 46. Rh4 {[%clk 00:35:32]} {[%emt 00:01:02]} Kg7 {[%clk
00:22:48]} {[%emt 00:02:07]} 47. Rxd4 {[%clk 00:34:21]} {[%emt 00:01:41]} Ra1+
{[%clk 00:22:19]} {[%emt 00:00:58]} 48. Kh2 {[%clk 00:34:42]} {[%emt 00:00:10]}
b1=Q {[%emt 00:03:10]} 49. Rxb1 Rxb1 {[%clk 00:19:18]} {[%emt 00:00:21]} 50.
Rxa4 {[%clk 00:35:08]} {[%emt 00:00:04]} Rbc1 {[%clk 00:18:55]} {[%emt
00:00:53]} 51. Re4 {[%clk 00:34:56]} {[%emt 00:00:42]} R1c4 {[%clk 00:18:18]}
{[%emt 00:01:07]} 52. Re3 {[%clk 00:34:40]} {[%emt 00:00:45]} h5 {[%clk
00:15:55]} {[%emt 00:02:54]} 53. f3 {[%clk 00:32:38]} {[%emt 00:02:32]} f5
{[%clk 00:14:29]} {[%emt 00:01:55]} 54. g3 {[%clk 00:32:32]} {[%emt 00:00:36]}
Rc2+ {[%clk 00:12:38]} {[%emt 00:02:22]} 55. Kg1 {[%clk 00:32:47]} {[%emt
00:00:15]} Rd7 {[%clk 00:12:19]} {[%emt 00:00:49]} 56. Re1 {[%clk 00:32:34]}
{[%emt 00:00:43]} Rdd2 {[%clk 00:10:39]} {[%emt 00:02:10]} 57. Kf1 {[%clk
00:29:12]} {[%emt 00:03:51]} Rf2+ {[%clk 00:09:21]} {[%emt 00:01:49]} 58. Kg1
{[%clk 00:29:30]} {[%emt 00:00:12]} Rg2+ {[%clk 00:09:01]} {[%emt 00:00:49]} 59.
Kh1 {[%clk 00:29:38]} {[%emt 00:00:22]} Rxg3 {[%clk 00:09:06]} {[%emt
00:00:26]} 60. Rg1 {[%clk 00:27:14]} {[%emt 00:02:54]} Rxh3# {[%clk 00:09:04]}
{[%emt 00:00:32]} 0-1

[Event "NJSK 2022 Meisjes C"]
[Site "Almelo, Netherlands"]
[Date "2022.05.07"]
[Round "7.8"]
[White "Hagen, Carlijn"]
[Black "Koorevaar, Sarah-Joy"]
[Result "1-0"]
[TimeControl "90min/40moves + 30min + 30sec/move"]
[WhiteElo "783"]
[BlackElo "849"]

1. e4 {[%clk 01:30:57]} c5 {[%clk 01:30:57]} {[%emt 00:00:04]} 2. Nc3 {[%clk
01:31:19]} {[%emt 00:00:07]} Nc6 {[%clk 01:31:16]} {[%emt 00:00:12]} 3. Nf3
{[%clk 01:31:22]} {[%emt 00:00:27]} e6 {[%clk 01:31:36]} {[%emt 00:00:10]} 4.
d4 {[%clk 01:31:28]} {[%emt 00:00:24]} cxd4 {[%clk 01:32:02]} {[%emt 00:00:05]}
5. Nxd4 {[%clk 01:31:51]} {[%emt 00:00:07]} a6 {[%clk 01:31:32]} {[%emt
00:01:00]} 6. Be3 {[%clk 01:32:00]} {[%emt 00:00:20]} g6 {[%clk 01:31:05]}
{[%emt 00:00:58]} 7. Be2 {[%clk 01:31:02]} {[%emt 00:01:27]} Bg7 {[%clk
01:31:04]} {[%emt 00:00:32]} 8. O-O {[%clk 01:30:44]} {[%emt 00:00:48]} Nge7
{[%clk 01:30:16]} {[%emt 00:01:18]} 9. Bf3 {[%clk 01:29:32]} {[%emt 00:01:41]}
O-O {[%clk 01:30:30]} {[%emt 00:00:17]} 10. Nce2 {[%clk 01:27:29]} {[%emt
00:02:32]} d5 {[%clk 01:30:29]} {[%emt 00:00:32]} 11. c3 {[%clk 01:26:43]}
{[%emt 00:01:16]} dxe4 {[%clk 01:29:27]} {[%emt 00:01:32]} 12. Bxe4 {[%clk
01:26:37]} {[%emt 00:00:34]} f5 {[%clk 01:29:50]} {[%emt 00:00:09]} 13. Nxc6
{[%clk 01:26:05]} {[%emt 00:01:01]} Nxc6 {[%clk 01:29:09]} {[%emt 00:01:12]} 14.
Bxc6 {[%clk 01:25:53]} {[%emt 00:00:42]} bxc6 {[%clk 01:29:33]} {[%emt
00:00:05]} 15. Qa4 {[%clk 01:25:14]} {[%emt 00:01:09]} Bb7 {[%clk 01:29:09]}
{[%emt 00:00:56]} 16. Qc4 {[%clk 01:24:14]} {[%emt 00:01:28]} Qd7 {[%clk
01:27:32]} {[%emt 00:02:06]} 17. Rad1 {[%clk 01:23:44]} {[%emt 00:01:00]} Qf7
{[%clk 01:26:19]} {[%emt 00:01:34]} 18. Rd6 {[%clk 01:21:33]} {[%emt 00:02:51]}
Rfe8 {[%clk 01:22:16]} {[%emt 00:04:32]} 19. Bd4 {[%clk 01:21:10]} {[%emt
00:00:54]} a5 {[%clk 01:21:12]} {[%emt 00:01:34]} 20. Bxg7 {[%clk 01:20:55]}
{[%emt 00:00:45]} Kxg7 {[%clk 01:20:42]} {[%emt 00:01:00]} 21. Re1 {[%clk
01:20:03]} {[%emt 00:01:22]} Qe7 {[%clk 01:19:05]} {[%emt 00:02:07]} 22. Qd4+
{[%clk 01:19:50]} {[%emt 00:00:43]} e5 {[%clk 01:19:14]} {[%emt 00:00:22]} 23.
Qd1 {[%clk 01:19:24]} {[%emt 00:00:55]} Rad8 {[%clk 01:18:25]} {[%emt
00:01:18]} 24. Rxd8 {[%clk 01:19:22]} {[%emt 00:00:33]} Qxd8 {[%clk 01:18:47]}
{[%emt 00:00:09]} 25. Qb3 {[%clk 01:18:55]} {[%emt 00:00:55]} Ba6 {[%clk
01:18:06]} {[%emt 00:01:13]} 26. c4 {[%clk 01:17:40]} {[%emt 00:01:45]} Qd2
{[%clk 01:18:04]} {[%emt 00:00:31]} 27. Qd1 {[%clk 01:16:11]} {[%emt 00:02:00]}
Qxd1 {[%clk 01:18:00]} {[%emt 00:00:33]} 28. Rxd1 {[%clk 01:16:34]} {[%emt
00:00:07]} Bxc4 {[%clk 01:18:17]} {[%emt 00:00:14]} 29. Nc3 {[%clk 01:16:51]}
{[%emt 00:00:13]} Kf6 {[%clk 01:16:37]} {[%emt 00:02:10]} 30. Rd6+ {[%clk
01:16:37]} {[%emt 00:00:41]} Re6 {[%clk 01:16:57]} {[%emt 00:00:13]} 31. Rd7
{[%clk 01:16:26]} {[%emt 00:00:40]} h5 {[%clk 01:17:07]} {[%emt 00:00:20]} 32.
Ra7 {[%clk 01:16:37]} {[%emt 00:00:19]} Rd6 {[%clk 01:15:13]} {[%emt 00:02:24]}
33. b3 {[%clk 01:16:22]} {[%emt 00:00:46]} Bb5 {[%clk 01:14:30]} {[%emt
00:01:11]} 34. Rxa5 {[%clk 01:15:42]} {[%emt 00:01:12]} e4 {[%clk 01:14:34]}
{[%emt 00:00:26]} 35. h3 {[%clk 01:15:46]} {[%emt 00:00:26]} Rd2 {[%clk
01:13:17]} {[%emt 00:01:45]} 36. a4 {[%clk 01:14:53]} {[%emt 00:01:25]} Bd3
{[%clk 01:11:56]} {[%emt 00:01:51]} 37. Rc5 {[%clk 01:14:23]} {[%emt 00:00:59]}
Rc2 {[%clk 01:08:16]} {[%emt 00:04:09]} 38. Rxc6+ {[%clk 01:13:32]} {[%emt
00:01:22]} Ke5 {[%clk 01:08:32]} {[%emt 00:00:11]} 39. b4 {[%clk 01:11:40]}
{[%emt 00:02:25]} f4 {[%clk 01:06:53]} {[%emt 00:02:10]} 40. Rc5+ {[%clk
01:10:40]} {[%emt 00:01:30]} Kf6 {[%clk 01:07:03]} {[%emt 00:00:18]} 41. Nd5+
{[%clk 01:09:57]} {[%emt 00:01:15]} Kg5 {[%clk 01:02:30]} {[%emt 00:05:02]} 42.
Rxc2 {[%clk 01:09:05]} {[%emt 00:01:22]} Bxc2 {[%clk 01:02:44]} {[%emt
00:00:16]} 43. a5 {[%clk 01:09:01]} {[%emt 00:00:35]} Bb3 {[%clk 01:02:52]}
{[%emt 00:00:20]} 44. Nc7 {[%clk 01:07:40]} {[%emt 00:01:49]} Bc4 {[%clk
01:01:50]} {[%emt 00:01:35]} 45. a6 {[%clk 01:07:42]} {[%emt 00:00:28]} e3
{[%clk 01:02:08]} {[%emt 00:00:12]} 46. f3 {[%clk 01:06:47]} {[%emt 00:01:26]}
Bxa6 {[%clk 00:58:11]} {[%emt 00:04:26]} 47. Nxa6 {[%clk 01:07:05]} {[%emt
00:00:12]} Kh4 {[%clk 00:58:23]} {[%emt 00:00:18]} 48. Kf1 {[%clk 01:06:35]}
{[%emt 00:01:00]} Kg3 {[%clk 00:58:16]} {[%emt 00:00:37]} 49. b5 {[%clk
01:06:46]} {[%emt 00:00:20]} e2+ {[%emt 00:00:21]} 50. Kxe2 {[%clk 01:07:06]}
Kxg2 {[%clk 00:59:00]} {[%emt 00:00:04]} 51. b6 {[%clk 01:07:29]} {[%emt
00:00:06]} Kxh3 {[%clk 00:58:42]} {[%emt 00:00:48]} 52. b7 {[%emt 00:00:08]} g5
{[%emt 00:01:56]} 53. b8=Q {[%clk 01:05:47]} {[%emt 00:00:08]} g4 {[%clk
00:57:28]} {[%emt 00:01:44]} 54. fxg4 {[%clk 01:05:15]} {[%emt 00:01:02]} hxg4
{[%clk 00:57:51]} {[%emt 00:00:08]} 55. Qxf4 {[%clk 01:05:38]} {[%emt
00:00:07]} g3 {[%clk 00:57:31]} {[%emt 00:00:50]} 56. Qf5+ {[%clk 01:04:18]}
{[%emt 00:01:49]} Kh2 {[%clk 00:57:26]} {[%emt 00:00:35]} 57. Qh5 {[%clk
01:04:35]} {[%emt 00:00:14]} Kg2 {[%clk 00:57:07]} {[%emt 00:00:48]} 58. Qf3
{[%clk 01:04:52]} {[%emt 00:00:13]} Kh2 {[%clk 00:57:16]} {[%emt 00:00:21]} 59.
Kf1 {[%clk 01:04:52]} {[%emt 00:00:30]} g2+ {[%clk 00:57:08]} {[%emt 00:00:39]}
60. Qxg2+ {[%clk 01:04:41]} {[%emt 00:00:10]} 1-0

[Event "NJSK 2022 Meisjes C"]
[Site "Almelo, Netherlands"]
[Date "2022.05.07"]
[Round "7.9"]
[White "De Bruijne, Marlies"]
[Black "Verbunt, Lisa"]
[Result "1-0"]
[TimeControl "90min/40moves + 30min + 30sec/move"]
[WhiteElo "858"]
[BlackElo "807"]

1. e4 {[%clk 01:30:59]} e5 {[%clk 01:30:54]} {[%emt 00:00:07]} 2. Nf3 {[%clk
01:31:17]} {[%emt 00:00:11]} Nc6 {[%clk 01:31:09]} {[%emt 00:00:15]} 3. Nc3
{[%clk 01:31:14]} {[%emt 00:00:33]} Bc5 {[%clk 01:31:13]} {[%emt 00:00:25]} 4.
Nxe5 {[%clk 01:31:09]} {[%emt 00:00:37]} Nxe5 {[%clk 01:30:49]} {[%emt
00:00:52]} 5. d4 {[%clk 01:31:06]} {[%emt 00:00:34]} Bb6 {[%clk 01:29:11]}
{[%emt 00:02:07]} 6. dxe5 {[%clk 01:31:14]} {[%emt 00:00:23]} Ne7 {[%clk
01:28:56]} {[%emt 00:00:45]} 7. Bg5 {[%clk 01:30:46]} {[%emt 00:00:56]} h6
{[%clk 01:28:46]} {[%emt 00:00:41]} 8. Bd2 {[%clk 01:29:08]} {[%emt 00:02:07]}
d5 {[%clk 01:28:55]} {[%emt 00:00:22]} 9. exd5 {[%clk 01:29:01]} {[%emt
00:00:37]} Nxd5 {[%clk 01:29:10]} {[%emt 00:00:15]} 10. Bc4 {[%clk 01:27:58]}
{[%emt 00:01:33]} Be6 {[%clk 01:28:58]} {[%emt 00:00:41]} 11. Nxd5 {[%clk
01:27:43]} {[%emt 00:00:46]} Bxd5 {[%clk 01:29:09]} {[%emt 00:00:19]} 12. Bxd5
{[%clk 01:27:50]} {[%emt 00:00:24]} Qxd5 {[%clk 01:29:26]} {[%emt 00:00:12]} 13.
O-O {[%clk 01:27:53]} {[%emt 00:00:27]} Qxe5 {[%clk 01:29:11]} {[%emt
00:00:46]} 14. Re1 {[%clk 01:27:39]} {[%emt 00:00:44]} Qxe1+ {[%clk 01:29:02]}
{[%emt 00:00:38]} 15. Qxe1+ {[%clk 01:27:59]} {[%emt 00:00:10]} Kd7 {[%clk
01:29:03]} {[%emt 00:00:30]} 16. Bc3 {[%clk 01:27:36]} {[%emt 00:00:52]} Rhe8
{[%clk 01:28:57]} {[%emt 00:00:35]} 17. Qd2+ {[%clk 01:27:20]} {[%emt
00:00:47]} Kc6 {[%clk 01:28:56]} {[%emt 00:00:32]} 18. Bxg7 {[%clk 01:27:20]}
{[%emt 00:00:29]} Rad8 {[%clk 01:28:53]} {[%emt 00:00:33]} 19. Qc3+ {[%clk
01:26:06]} {[%emt 00:01:45]} Bc5 {[%clk 01:28:45]} {[%emt 00:00:38]} 20. b4
{[%clk 01:26:02]} {[%emt 00:00:33]} b6 {[%clk 01:28:55]} {[%emt 00:00:20]} 21.
bxc5 {[%clk 01:26:17]} {[%emt 00:00:15]} Re2 {[%clk 01:27:54]} {[%emt
00:01:31]} 22. Qf3+ {[%clk 01:26:29]} {[%emt 00:00:17]} Rd5 {[%clk 01:27:48]}
{[%emt 00:00:38]} 23. Qxe2 {[%clk 01:26:37]} {[%emt 00:00:21]} Rxc5 {[%clk
01:27:49]} {[%emt 00:00:29]} 24. g3 {[%clk 01:26:41]} {[%emt 00:00:26]} h5
{[%clk 01:27:56]} {[%emt 00:00:23]} 25. Qe7 {[%clk 01:26:25]} {[%emt 00:00:46]}
Rxc2 {[%clk 01:28:04]} {[%emt 00:00:22]} 26. Qe4+ {[%clk 01:26:42]} {[%emt
00:00:12]} Kb5 {[%clk 01:28:16]} {[%emt 00:00:20]} 27. Qxc2 {[%clk 01:26:56]}
{[%emt 00:00:15]} Ka6 {[%clk 01:28:36]} {[%emt 00:00:10]} 28. Qa4+ {[%clk
01:27:09]} {[%emt 00:00:17]} Kb7 {[%clk 01:28:59]} {[%emt 00:00:07]} 29. Rc1
{[%clk 01:27:15]} {[%emt 00:00:24]} f5 {[%clk 01:29:15]} {[%emt 00:00:14]} 30.
Be5 {[%clk 01:27:28]} {[%emt 00:00:17]} c5 {[%clk 01:29:23]} {[%emt 00:00:22]}
31. Rd1 {[%clk 01:27:50]} {[%emt 00:00:08]} Kc8 {[%clk 01:29:24]} {[%emt
00:00:29]} 32. Qxa7 {[%clk 01:28:10]} {[%emt 00:00:10]} c4 {[%clk 01:29:31]}
{[%emt 00:00:23]} 33. Bf6 {[%clk 01:28:22]} {[%emt 00:00:18]} c3 {[%clk
01:29:54]} {[%emt 00:00:07]} 34. Rd8# {[%clk 01:28:12]} {[%emt 00:00:09]} 1-0